Cogmind - Beta 15 @@@ ROGUE MODE // 2025.10.14 @ 16:56:54 Player: VVRLD_D35TR0YER Result: Destroyed by X-87 Electro with Compact HERF Cannon Performance ------------- Evolutions (8) 4000 Regions Visited (14) 2800 Robots Destroyed (292) 1460 Value Destroyed (12594) 12594 Prototype IDs (31) 620 Alien Tech Used (11) 2200 Bonus (3434) 3434 TOTAL SCORE: 27108 Bonus ------- High Alert Combat Kills 1389 Met Zhirov 300 Met Sigix 2000 Friendly Fire -255 Cogmind --------- Core Integrity 0/1450 Matter 259/300 Energy 98/100 System Corruption 37% Temperature Cool (0) Movement Core (50) Location -2/Research Parts ------- > --- POWER (3) -------- (None) > --- PROPULSION (6) --- Biometal Heavy Treads Advanced Heavy Siege Treads High-density Centrium Heavy Treads > --- UTILITY (8) ------ Enhanced Optical Array > --- WEAPON (6) ------- (None) > --- INVENTORY (5) ---- Core Cannon Peak State ------------ > --- POWER ------------ Reinforced Antimatter Reactor Heavy Antimatter Reactor Matter Drive > --- PROPULSION ------- Enhanced Armored Leg Enhanced Armored Leg Biometal Leg Biometal Leg Biometal Leg Centrium Leg > --- UTILITY ---------- Improved Cooling System High-capacity Storage Unit Advanced Sensor Array Advanced Melee Analysis Suite Core Analyzer Phase Armor Improved System Shield > --- WEAPON ----------- Great Maul Great Maul Core Stripper Sigix Broadsword > --- INVENTORY -------- Light Antimatter Reactor Micro Antimatter Reactor Improved Heavy Siege Treads Improved Heavy Siege Treads Enhanced Armored Leg Experimental Matter Compressor Transmission Jammer Graphene Brace Thermal Defense Suite Improved Hardlight Generator Improved Hardlight Generator Advanced Remote Force Field Dimensional Node Initializer Terrabomb Core Cannon Great Maul Great Maul [Rating: 206] Favorites ----------- Power Enhanced Nuclear Core Engine Heavy Ion Engine Power Core Enhanced Nuclear Core Reactor Cold Fusion Reactor Propulsion Enhanced Armored Leg Treads Light Treads Leg Enhanced Armored Leg Wheel Compact Wheel Utility High-capacity Storage Unit Device Transmission Jammer Storage High-capacity Storage Unit Processor Core Analyzer Hackware Improved System Shield Protection Light Armor Plating Artifact Phase Armor Weapon Improved Light Cannon Energy Gun Dispersion Rifle Energy Cannon HERF Cannon Ballistic Gun Improved KE Penetrator Ballistic Cannon Improved Light Cannon Launcher Precision Grenade Launcher Impact Weapon Great Maul Slashing Weapon Sigix Broadsword Piercing Weapon Heavy Pick Build | -11 -10 -9 -8 -7 -6 -5 -4 -4 -4 -4 -3 -3 -3 -2 ------- Run | Yrd Mat Mat Mat Fac Fac Fac Fac Upp Upp Zhi Pro Res Qua Res Slots Evolved 16 | . . 2 2 2 2 2 2 . . . . 2 . 2 Power 2 | . . . . . . . 1 . . . . . . 1 Propulsion 4 | . . . 2 . . . 1 . . . . 1 . . Utility 6 | . . 1 . . 2 2 . . . . . 1 . . Weapon 4 | . . 1 . 2 . . . . . . . . . 1 Parts Attached 185 | . 4 21 4 21 8 2 17 1 10 5 4 5 30 53 Power 16 | . . 3 1 1 2 1 . . . 2 . 1 3 2 Engine 4 | . . 3 1 . . . . . . . . . . . Core 4 | . . . . 1 1 1 . . . 1 . . . . Reactor 8 | . . . . . 1 . . . . 1 . 1 3 2 Propulsion 59 | . 1 3 2 6 2 . 5 1 4 . 1 2 10 22 Treads 26 | . . 3 2 6 2 . 5 1 1 . 1 1 . 4 Leg 31 | . . . . . . . . . 3 . . 1 10 17 Wheel 2 | . 1 . . . . . . . . . . . . 1 Hover . | . . . . . . . . . . . . . . . Flight . | . . . . . . . . . . . . . . . Utility 60 | . 1 4 1 5 3 1 7 . 2 3 3 2 12 16 Device 28 | . . . . 1 3 . 5 . 2 . 1 1 4 11 Storage 7 | . 1 1 . 1 . . . . . 2 . 1 . 1 Processor 10 | . . 2 1 1 . . . . . . 1 . 2 3 Hackware 4 | . . . . . . . 1 . . 1 . . 1 1 Protection 9 | . . 1 . 2 . 1 1 . . . 1 . 3 . Artifact 2 | . . . . . . . . . . . . . 2 . Weapon 50 | . 2 11 . 9 1 . 5 . 4 . . . 5 13 Energy Gun 2 | . . . . 1 . . 1 . . . . . . . Energy Cannon 2 | . . . . . . . . . 1 . . . . 1 Ballistic Gun 9 | . . 3 . . . . 1 . 1 . . . . 4 Ballistic Cannon 19 | . 2 5 . 5 1 . 3 . 1 . . . 2 . Launcher 7 | . . 2 . 3 . . . . . . . . . 2 Special Weapon . | . . . . . . . . . . . . . . . Impact Weapon 6 | . . 1 . . . . . . . . . . 1 4 Slashing Weapon 3 | . . . . . . . . . 1 . . . 2 . Piercing Weapon 2 | . . . . . . . . . . . . . . 2 Special Melee Weapon . | . . . . . . . . . . . . . . . Unidentified Prototypes 32 | . . 3 . 3 2 . 1 . . 4 . 1 10 8 Corrupted Parts 2 | . . . . . . . . . . . 1 . . 1 System Corruption 16 | . . . . . . . . . . . 12 . . 4 Parts Lost 43 | . . . . . 1 . 1 . 9 . 2 . 7 23 Power 5 | . . . . . . . . . . . 1 . . 4 Propulsion 10 | . . . . . . . . . 3 . 1 . 1 5 Utility 18 | . . . . . . . . . 3 . . . 6 9 Weapon 10 | . . . . . 1 . 1 . 3 . . . . 5 Highest Loss Streak 9 | . . . . . 1 . 1 . 4 . 1 . 1 9 To Critical Strikes 1 | . . . . . . . . . . . . . . 1 Average Backups 17 | . 8 14 14 18 19 19 19 19 18 18 19 18 16 14 Power 1 | . 1 1 1 2 2 2 1 1 1 2 2 2 1 . Propulsion 2 | . 4 5 4 3 3 3 1 1 1 1 1 1 2 3 Utility 8 | . 1 2 4 7 7 7 11 12 10 11 11 9 8 7 Weapon 4 | . 2 4 5 5 6 6 5 5 4 4 4 4 2 2 Tool/Special . | . . . . . . . . . . . . . . . Unused Backups 53 | . 8 7 1 12 . 1 5 . . 2 1 2 7 7 Power 10 | . 1 3 . 3 . . . . . . . . 1 2 Propulsion 13 | . 3 1 1 4 . . . . . . . . 2 2 Utility 19 | . 1 . . 4 . . 4 . . 2 1 2 3 2 Weapon 9 | . 3 3 . 1 . 1 . . . . . . 1 . Tool/Special 2 | . . . . . . . 1 . . . . . . 1 Average Slot Usage (%) 93 | . 95 96 99 99 99 99 99 100 96 75 92 95 88 82 Engine 1 | . 14 10 9 1 . . . . . . . . . . Core 3 | . . . . 5 5 5 5 5 5 6 5 4 3 . Reactor 3 | . . . . . . . 5 5 5 3 . . 4 11 Treads 13 | . . 17 35 30 26 23 25 26 13 10 11 15 3 . Leg 11 | . 20 2 . . . . . . 9 15 11 12 24 22 Device 10 | . . . . . 12 22 17 15 20 20 17 18 9 9 Storage 6 | . 25 11 9 7 6 5 5 5 5 5 5 4 4 3 Processor 7 | . . 9 9 7 6 5 5 5 5 5 7 9 10 9 Hackware 3 | . . . . . . . 3 5 5 5 5 4 5 2 Protection 3 | . . 9 9 6 6 5 3 5 . . . . 3 . Energy Gun 1 | . . . . . . . 1 5 4 . 5 4 . . Ballistic Gun 2 | . . 9 . . . . . . 1 1 9 9 . 1 Ballistic Cannon 14 | . 24 20 27 37 32 29 21 21 8 . 9 9 4 . Impact Weapon 1 | . . . . . . . . . . . . . . 10 Slashing Weapon 2 | . . . . . . . . . 2 . . . 7 3 Peak Build Rating 206 | . 8 17 20 41 61 69 95 92 102 100 100 122 180 206 Average Rating 98 | . 7 14 18 29 53 68 84 89 90 67 95 112 159 170 On Entrance 66 | 6 6 7 16 20 41 61 69 92 87 98 100 97 122 174 Naked Turns 22 | . . . . . . . . . . . . . . 22 Heaviest Build 188 | 11 24 43 43 74 88 88 118 118 122 102 103 125 134 188 Greatest Support 170 | 20 20 40 80 88 104 104 124 114 109 70 70 102 138 170 Greatest Overweight (x) 13 | . 1 2 . 1 . . 1 1 4 1 1 1 1 13 Average Overweight (x) . | . . . . . . . . 1 1 . 1 1 . . Largest Inventory Capacity 20 | . 10 15 15 20 20 20 20 20 20 20 20 20 20 20 Average Capacity 18 | . 9 14 15 18 20 20 20 20 20 20 20 20 20 19 Most Carried 20 | . 10 15 15 20 20 20 20 20 20 20 20 20 20 20 Average Carried 18 | . 8 14 14 18 19 19 19 20 19 19 19 19 19 18 Final Capacity 20 | 8 10 15 15 20 20 20 20 20 20 20 20 20 20 5 Final Carried 20 | 6 10 15 15 20 20 20 20 20 20 20 20 20 20 2 Class Distribution -------------------- 18% | Gunner 16% | Mutant 13% | Scavenger-Gunner 12% | Derelict-Gunner 9% | Gladiator 8% | Tank 4% | Scavenger-Tank 4% | Hacker-Mutant Dominant Class ---------------- Mutant | -10/Materials Gunner | -9/Materials Gunner | -8/Materials Gunner | -7/Factory Tank | -6/Factory Tank | -5/Factory Tank | -4/Factory Scavenger-Tank | -4/Upper Caves Derelict-Gunner | -4/Upper Caves Derelict-Mutant | -4/Zhirov Derelict-Gunner | -3/Proximity Caves Scavenger-Gunner | -3/Research Mutant | -3/Quarantine Gladiator | -2/Research Resources | -11 -10 -9 -8 -7 -6 -5 -4 -4 -4 -4 -3 -3 -3 -2 ----------- Run | Yrd Mat Mat Mat Fac Fac Fac Fac Upp Upp Zhi Pro Res Qua Res Matter Collected 9962 | 200 161 1063 125 1007 504 106 1668 467 917 200 474 . 1556 1514 Remotely . | . . . . . . . . . . . . . . . Salvage Created 12848 | . 180 914 59 1111 320 22 1303 355 612 . 242 . 3660 4070 Parts 668 | . 21 62 5 63 6 2 63 6 29 . 9 . 244 158 Haulers Intercepted 20 | . 1 5 2 5 1 . 2 . . . . . 2 2 Recyclers Shooed 6 | . . 1 1 . 1 . 2 . . . . . . 1 Parts Field Recycled . | . . . . . . . . . . . . . . . Retrieved Matter . | . . . . . . . . . . . . . . . Parts Self-Destructed 29 | . . . . . . . . 5 20 . 4 . . . Prevented . | . . . . . . . . . . . . . . . Kills | -11 -10 -9 -8 -7 -6 -5 -4 -4 -4 -4 -3 -3 -3 -2 ------- Run | Yrd Mat Mat Mat Fac Fac Fac Fac Upp Upp Zhi Pro Res Qua Res Combat Hostiles Destroyed 194 | . 6 21 . 19 4 1 23 5 18 . 7 . 50 40 Melee 72 | . . . . . . . . . . . . . 45 27 Guns 12 | . . 7 . . . . 3 . . . 2 . . . Cannons 56 | . 6 8 . 13 4 1 10 5 8 . . . 1 . AOE 43 | . . 6 . 6 . . 9 . 9 . 5 . 4 4 Classes Destroyed 17 | . 5 5 1 2 . . 2 1 . . 1 . . . Worker 20 | . . 1 . 7 . . 6 . . . . . 2 4 Builder 25 | . . . 1 3 . . 9 . . . . . 6 6 Tunneler 1 | . . 1 . . . . . . . . . . . . Hauler 20 | . 1 5 2 5 1 . 2 . . . . . 2 2 Recycler 17 | . 1 1 . 6 1 . 3 . . . . . 1 4 Mechanic 1 | . . 1 . . . . . . . . . . . . Operator 5 | . 1 3 . . . . . . . . . . 1 . Drone 2 | . . . . . . . . . . . 2 . . . Watcher 9 | . . 2 . 2 . . 2 . . . . . . 3 Swarmer 37 | . 5 7 . 4 . . 2 . 10 . . . 9 . Grunt 63 | . 1 9 . 7 3 . 10 3 2 . 5 . 9 14 Brawler 6 | . . . . . . . 1 1 1 . . . 2 1 Duelist 2 | . . . . . . . 1 . 1 . . . . . Sentry 16 | . . 5 . 1 . . 2 1 2 . . . 3 2 Hunter 15 | . . . . 1 1 1 2 . 2 . . . . 8 Programmer 52 | . . . . 6 . . 4 . . . . . 27 15 Packrat 4 | . . . . . . . . 3 1 . . . . . Samaritan 3 | . . . . . . . . 1 1 . 1 . . . Best Kill Streak 10 | . 5 6 1 8 2 1 7 4 6 . 5 . 5 10 Combat Bots Only 7 | . 2 4 . 7 2 1 5 4 6 . 5 . 5 7 Max Kills in Single Turn 4 | . 2 2 1 3 1 1 3 1 3 . 3 . 4 1 Gunslinging . | . . . . . . . . . . . . . . . Exploded 4 | . . 2 . 2 . . 2 . 3 . 3 . 4 1 Melee 1 | . . . . . . . . . . . . . 1 1 Uniques/NPCs Destroyed 1 | . . . . . . . 1 . . . . . . . 7R-MNS (-4/Factory) Combat | -11 -10 -9 -8 -7 -6 -5 -4 -4 -4 -4 -3 -3 -3 -2 -------- Run | Yrd Mat Mat Mat Fac Fac Fac Fac Upp Upp Zhi Pro Res Qua Res Hostile Shots Fired 1731 | . 17 54 8 90 14 2 179 24 139 . 17 . 425 762 Missed 543 | . 3 18 2 42 10 . 40 5 43 . 9 . 132 239 Hits 1188 | . 14 36 6 48 4 2 139 19 96 . 8 . 293 523 Melee 12 | . . . . . . . . . . . . . 10 2 Projectile 1176 | . 14 36 6 48 4 2 139 19 96 . 8 . 283 521 AOE 1 | . . 1 . . . . . . . . . . . . Critical Strikes 64 | . . . . . . . 8 2 3 . 2 . 25 24 Actively Blocked 18 | . . . . . . . 1 2 1 . . . 4 10 Part Disruptions 7 | . . . . 1 . . . . . . . . 1 5 Damage Taken 21182 | . 117 452 91 657 50 22 1938 248 1349 . 173 . 5324 10761 Core 2005 | . 10 52 . 75 12 . 151 . 91 . . . 206 1408 Absorbed by Shields 3713 | . . . . . 19 8 734 149 219 . . . 1364 1220 Redirected to Core 433 | . . . . . . . . . . . . . . 433 Redirected to Shielding 111 | . . . . . . . . . . . . . 111 . Ignored by Resistances 781 | . . . . 8 8 . 238 . . . . . 401 126 Regen/Repaired (Parts) 4770 | . 92 67 . . . . . . . . . . 2724 1887 Core Remaining (%) 89 | 100 96 87 100 89 98 100 . . . . 78 . 54 . Volleys Fired 320 | . 17 53 3 56 11 2 65 17 33 . 11 5 32 15 Largest 5 | . 2 3 3 5 5 5 5 5 5 . 5 1 3 1 Hottest 300 | . 60 99 99 169 169 169 245 245 263 . 260 51 139 300 Shots Fired 998 | . 34 148 9 211 55 10 275 73 87 . 33 5 45 13 Gun 134 | . 4 47 . . . . 22 17 21 . 19 . 4 . Cannon 802 | . 30 93 9 201 55 10 235 56 59 . 5 5 40 4 Launcher 62 | . . 8 . 10 . . 18 . 7 . 9 . 1 9 Special . | . . . . . . . . . . . . . . . Kinetic 867 | . 32 140 9 201 55 10 250 56 47 . 16 5 44 2 Thermal 54 | . . . . . . . 7 17 20 . 8 . . 2 Explosive 53 | . . 8 . 10 . . 18 . 7 . 9 . 1 . Electromagnetic 24 | . 2 . . . . . . . 13 . . . . 9 Robot Hit Streak 19 | . 3 8 5 14 19 12 15 14 7 . 16 . 3 4 Robot Miss Streak 5 | . 2 5 4 4 2 3 5 4 4 . 3 . 2 4 Penetration Max 1 | . . . . . . . 1 . . . . . . 1 Secondary Targets . | . . . . . . . . . . . . . . . Shots Hit Robots 750 | . 17 80 6 100 39 5 142 43 46 . 19 . 114 139 Core Hits 467 | . 10 49 3 63 15 3 106 17 33 . 20 . 63 85 Critical Kills 5 | . . . . . . . 2 . 1 . 1 . . 1 Critical Parts Destroyed 15 | . . . . . . . . 1 2 . . . . 12 Critical Strikes 74 | . . 4 . 5 3 1 12 3 5 . 2 . 10 29 Destroy 9 | . . . . . . . 2 1 3 . 1 . . 2 Blast 30 | . . 4 . 5 3 1 10 2 2 . 1 . 2 . Smash 12 | . . . . . . . . . . . . . . 12 Sever 21 | . . . . . . . . . . . . . 8 13 Impale 2 | . . . . . . . . . . . . . . 2 Melee Attacks 415 | . . . . . . . . . 18 . . . 213 184 Kinetic 9 | . . . . . . . . . . . . . . 9 Impact 52 | . . . . . . . . . . . . . . 52 Slashing 330 | . . . . . . . . . 18 . . . 213 99 Piercing 24 | . . . . . . . . . . . . . . 24 Sneak Attacks 28 | . . . . . . . . . . . . . 13 15 Combat Hostiles 2 | . . . . . . . . . . . . . 2 . Follow-up Attacks 59 | . . . . . . . . . . . . . 17 42 Damage Inflicted 37792 | . 310 1777 151 3292 798 94 5715 1439 2304 . 1202 . 9538 11172 Guns 1806 | . 23 481 . . . . 367 270 372 . 261 . 32 . Cannons 10605 | . 287 918 124 2308 798 94 3231 1169 974 . 80 . 222 400 Explosions 7128 | . . 378 . 952 . . 2115 . 958 . 861 . 246 1618 Melee 18182 | . . . . . . . . . . . . . 9038 9144 Ramming 71 | . . . 27 32 . . 2 . . . . . . 10 Kinetic 11233 | . 294 1399 124 2308 798 94 3571 1169 724 . 206 . 254 292 Thermal 2066 | . . . . . . . 246 270 351 . 135 . . 1064 Explosive 5227 | . . 378 . 888 . . 1896 . 958 . 861 . 246 . Electromagnetic 1305 | . 16 . . 64 . . . . 271 . . . . 954 Impact 1678 | . . . . . . . . . . . . . . 1678 Slashing 15657 | . . . . . . . . . . . . . 9038 6619 Piercing 555 | . . . . . . . . . . . . . . 555 Highest Corruption 37 | . 1 . 2 1 . . 8 8 8 8 20 . 30 37 Average Corruption 9 | . 1 . 2 1 . . 4 8 8 8 12 . 14 13 Corruption Purged . | . . . . . . . . . . . . . . . Corruption Blocked . | . . . . . . . . . . . . . . . Effects 325 | . 3 . 2 8 . . 22 21 45 9 19 . 117 79 Message Errors 76 | . 1 . 1 1 . . 5 5 11 4 7 . 26 15 Matter Fused 76 | . 1 . . 2 . . 4 5 11 3 4 . 25 21 Heat Flow Errors 35 | . . . . 2 . . 2 4 6 1 . . 9 11 Energy Discharges 45 | . 1 . 1 . . . 2 . 8 1 2 . 23 7 Parts Rejected 7 | . . . . . . . . 1 1 . . . 3 2 Parts Fused 1 | . . . . . . . . . . . . . 1 . Data Loss (minor) 42 | . . . . 1 . . 2 5 5 . 4 . 11 14 Data Loss (major) 9 | . . . . 1 . . . . 2 . . . 5 1 Misfires 14 | . . . . 1 . . 3 1 . . 2 . 7 . Alerts 7 | . . . . . . . 2 . . . . . 2 3 Misdirections 8 | . . . . . . . . . . . . . 5 3 Weapon Failures 5 | . . . . . . . 2 . 1 . . . . 2 Overload Shots . | . . . . . . . . . . . . . . . Overflow Damage 3934 | . . . 1 100 1 . 117 14 22 . 16 . 1187 2476 Projectiles 301 | . . . 1 40 1 . 56 14 12 . . . 27 150 Explosions 284 | . . . . 60 . . 61 . 10 . 16 . . 137 Melee 3349 | . . . . . . . . . . . . . 1160 2189 Knockbacks 84 | . 1 3 . 26 9 . 23 . 9 . . . 1 12 Impact 12 | . . . . 1 . . . . . . . . . 11 Kinetic 69 | . 1 3 . 24 9 . 22 . 9 . . . 1 . Secondary 3 | . . . . 1 . . 1 . . . . . . 1 Self-Inflicted Damage 90 | . . . . 55 . . . . 31 . . . . 4 Shots 3 | . . . . 1 . . . . 2 . . . . . Rammed 10 | . . . 2 4 . . 1 . . . . . . 3 Targets Rammed 12 | . 1 . 3 4 . . 1 . . . . . . 3 Kicked 1 | . 1 . . . . . . . . . . . . . Crushed 1 | . . . 1 . . . . . . . . . . . Highest Temperature 411 | . 20 144 66 297 292 133 233 212 211 81 36 . 157 411 Average Temperature 64 | . 11 35 29 81 77 72 50 55 59 42 21 . 74 93 Received Heat Transfer 2232 | . 6 126 . 141 24 . 528 62 59 . . . 605 681 Effects 1 | . . . . . . . . . . . . . . 1 Shutdowns 1 | . . . . . . . . . . . . . . 1 Siege Activations . | . . . . . . . . . . . . . . . Martial Activations . | . . . . . . . . . . . . . . . Shielding Activations 1 | . . . . . . . . . . . . . . 1 Total Turns 1 | . . . . . . . . . . . . . . 1 Longest Duration 1 | . . . . . . . . . . . . . . 1 Robots Disrupted . | . . . . . . . . . . . . . . . Combat Hostiles . | . . . . . . . . . . . . . . . Robots Corrupted 9 | . . . . . . . . . 1 . . . . 8 Combat Hostiles 6 | . . . . . . . . . . . . . . 6 Parts Fried 11 | . . . . . . . . . . . . . . 11 Impact Corruptions 28 | . . . . . . . . . . . . . . 28 Robots Melted . | . . . . . . . . . . . . . . . Combat Hostiles . | . . . . . . . . . . . . . . . Parts Melted 2 | . . . . . . . 2 . . . . . . . Heat Transferred 1609 | . . . . . . . 173 370 481 . 185 . . 400 Parts Sabotaged . | . . . . . . . . . . . . . . . Parts Stolen . | . . . . . . . . . . . . . . . Parts Stripped 32 | . . . . . . . . . . . . . . 32 Power Chain Reactions 3 | . . . . . . . . . . . . . . 3 Alert | -11 -10 -9 -8 -7 -6 -5 -4 -4 -4 -4 -3 -3 -3 -2 ------- Run | Yrd Mat Mat Mat Fac Fac Fac Fac Upp Upp Zhi Pro Res Qua Res Maximum Alert Level 3 | . . 1 . 2 1 . 2 . . . . 1 3 3 Low Security (%) 44 | . 100 18 100 90 48 100 62 . . . . 30 39 . Level 1 28 | . . 81 . 1 51 . 9 . . . . 69 31 25 Level 2 21 | . . . . 7 . . 28 . . . . . 22 60 Level 3 4 | . . . . . . . . . . . . . 5 13 Level 4 . | . . . . . . . . . . . . . . . Level 5 . | . . . . . . . . . . . . . . . High Security . | . . . . . . . . . . . . . . . Max Security . | . . . . . . . . . . . . . . . Peak Influence 887 | . 109 333 113 465 240 74 648 . . . . 300 785 887 Initial 441 | . . 16 113 . 224 74 4 . . . . 300 80 441 Average 262 | . 45 235 58 91 196 36 220 . . . . 225 295 504 Influence Increases 6859 | . 186 743 20 826 137 50 1025 110 405 . 120 323 1574 1340 Destroy 0b10 Robot/C 3820 | . 120 420 . 380 80 20 440 100 360 . 100 . 1000 800 Destroy 0b10 Robot/NC 500 | . 15 70 15 115 10 . 110 . . . 10 . 60 95 Destroy Leader 718 | . 12 114 4 104 12 10 98 10 30 . 10 . 134 180 Allied During Kill 1 | . . . . . . . . . . . . . . 1 Successful Hack 161 | . 23 19 . 12 . . 9 . . . . 15 65 18 Select Force Hacks 20 | . . . . . . 20 . . . . . . . . Disable Machine 480 | . . 60 . 120 30 . 60 . . . . . 180 30 Destroy Structure 634 | . 1 30 1 80 5 . 308 . . . . 8 120 81 Advance Influence 300 | . . . . . . . . . . . . 300 . . Partial Spotted 30 | . . . . . . . . . . . . . . 30 Lose Combat Pursuer 195 | . 15 30 . 15 . . . . 15 . . . 15 105 Influence Decreases 5978 | . 145 516 285 370 443 193 393 500 657 . 120 180 933 1243 Entered New Map 1196 | . . 25 155 3 235 79 6 238 49 . . . 63 343 Time Decay 4240 | . 145 491 130 367 198 114 377 262 518 . 110 180 718 630 Lost Part 420 | . . . . . 10 . 10 . 90 . 10 . 70 230 Lost Ally 60 | . . . . . . . . . . . . . 20 40 Purge Threat 62 | . . . . . . . . . . . . . 62 . Squads Dispatched 50 | . . 2 6 5 4 2 5 . . . . 2 14 10 Investigation 5 | . . 1 1 . . 1 . . . . . . 1 1 Extermination 23 | . . . . 4 . . 2 . . . . 1 11 5 Reinforcement 17 | . . 1 2 1 4 1 3 . . . . 1 . 4 Assault 2 | . . . . . . . . . . . . . 2 . Garrison 3 | . . . 3 . . . . . . . . . . . Intercept . | . . . . . . . . . . . . . . . Searches Triggered . | . . . . . . . . . . . . . . . Construction Impeded 3 | . . . . 1 . . 2 . . . . . . . Haulers Reinforced 4 | . . . . . 1 . 1 . . . . . . 2 Active Scanning Responses . | . . . . . . . . . . . . . . . Cargo Convoy Interrupts . | . . . . . . . . . . . . . . . Stealth | -11 -10 -9 -8 -7 -6 -5 -4 -4 -4 -4 -3 -3 -3 -2 --------- Run | Yrd Mat Mat Mat Fac Fac Fac Fac Upp Upp Zhi Pro Res Qua Res Distress Signals 16 | . 2 1 1 . 2 1 1 . . . . . 4 4 Communications Jammed 62 | . . . . . 2 . . . . . . . 43 17 Distress Signals 60 | . . . . . . . . . . . . . 43 17 Times Spotted 294 | . 9 32 5 22 11 5 27 5 18 . 8 . 87 65 Peak Tracking Total 11 | . 4 5 2 6 3 3 5 4 5 . 4 1 11 10 Tactical Retreats 10 | . 1 1 . 1 . . . . 1 . . . 1 5 Traps | -11 -10 -9 -8 -7 -6 -5 -4 -4 -4 -4 -3 -3 -3 -2 ------- Run | Yrd Mat Mat Mat Fac Fac Fac Fac Upp Upp Zhi Pro Res Qua Res Traps Triggered 19 | . . 3 1 1 . . 2 . . . . . 6 6 Indirectly 5 | . . . . . . . . . . . . . . 5 Trap Hack Attempts . | . . . . . . . . . . . . . . . Triggered . | . . . . . . . . . . . . . . . Disarmed . | . . . . . . . . . . . . . . . Reprogrammed . | . . . . . . . . . . . . . . . Reused . | . . . . . . . . . . . . . . . Traps Extracted . | . . . . . . . . . . . . . . . Installed . | . . . . . . . . . . . . . . . Triggered . | . . . . . . . . . . . . . . . Machines | -11 -10 -9 -8 -7 -6 -5 -4 -4 -4 -4 -3 -3 -3 -2 ---------- Run | Yrd Mat Mat Mat Fac Fac Fac Fac Upp Upp Zhi Pro Res Qua Res Machines Disabled 34 | . . 4 . 8 2 . 4 . 1 . . . 13 2 Max in Single Turn 4 | . . 1 . 4 1 . 4 . 1 . . . 1 1 Machines Repaired . | . . . . . . . . . . . . . . . Machines Dismantled . | . . . . . . . . . . . . . . . Machines Sabotaged . | . . . . . . . . . . . . . . . Overloaded Fab Kills . | . . . . . . . . . . . . . . . Hacking | -11 -10 -9 -8 -7 -6 -5 -4 -4 -4 -4 -3 -3 -3 -2 --------- Run | Yrd Mat Mat Mat Fac Fac Fac Fac Upp Upp Zhi Pro Res Qua Res Machines Accessed 53 | . 6 9 2 5 . 2 3 . . 5 . 2 11 8 Terminals 31 | . 5 5 2 2 . 1 2 . . . . 1 10 3 Fabricators 4 | . . . . 1 . 1 1 . . . . . . 1 Repair Stations 5 | . 1 2 . . . . . . . . . 1 1 . Recycling Units 4 | . . 1 . 1 . . . . . . . . . 2 Scanalyzers 2 | . . 1 . . . . . . . . . . . 1 Garrison Access 2 | . . . . 1 . . . . . . . . . 1 Total Hacks 155 | . 26 29 6 11 . 3 7 . . 18 . 9 30 16 Successful 77 | . 15 16 1 4 . 1 2 . . 18 . 6 11 3 Failed 78 | . 11 13 5 7 . 2 5 . . . . 3 19 13 Catastrophic 18 | . . 2 1 1 . 1 2 . . . . 1 6 4 Database Lockouts . | . . . . . . . . . . . . . . . Manual 58 | . 10 16 3 4 . 3 4 . . . . 8 8 2 Terminals 95 | . 22 18 6 4 . 1 5 . . . . 7 28 4 Fabricators 10 | . . . . 4 . 2 2 . . . . . . 2 Repair Stations 11 | . 4 3 . . . . . . . . . 2 2 . Recycling Units 7 | . . 2 . 1 . . . . . . . . . 4 Scanalyzers 9 | . . 6 . . . . . . . . . . . 3 Garrison Access 5 | . . . . 2 . . . . . . . . . 3 Terminal Hacks 39 | . 5 2 . 1 . . 1 . . 18 . 4 8 . Record 10 | . . . . . . . . . . 6 . . 4 . Part Schematic 5 | . . . . 1 . . . . . 4 . . . . Robot Analysis 4 | . . . . . . . . . . 4 . . . . Prototype ID Bank 4 | . . . . . . . . . . 4 . . . . Open Door 1 | . . . . . . . . . . . . . 1 . Branch Access Points 1 | . . . . . . . . . . . . 1 . . Terminal Index 2 | . . . . . . . 1 . . . . 1 . . Alert Level 1 | . . . . . . . . . . . . . 1 . Unreport Threat 1 | . . . . . . . . . . . . . 1 . Locate Traps 1 | . 1 . . . . . . . . . . . . . Patrol Status 1 | . . . . . . . . . . . . . 1 . Hauler Manifests 2 | . 1 . . . . . . . . . . 1 . . Registered Components 2 | . 1 1 . . . . . . . . . . . . Zone Layout 4 | . 2 1 . . . . . . . . . 1 . . Fabricator Hacks 3 | . . . . 1 . . . . . . . . . 2 Network Status 2 | . . . . 1 . . . . . . . . . 1 Build 1 | . . . . . . . . . . . . . . 1 Repair Station Hacks 8 | . 4 2 . . . . . . . . . . 2 . Scan Component 4 | . 2 1 . . . . . . . . . . 1 . Repair 4 | . 2 1 . . . . . . . . . . 1 . Recycling Unit Hacks 1 | . . 1 . . . . . . . . . . . . Report Inventory 1 | . . 1 . . . . . . . . . . . . Scanalyzer 7 | . . 6 . . . . . . . . . . . 1 Insert Component 4 | . . 3 . . . . . . . . . . . 1 Analyze 3 | . . 3 . . . . . . . . . . . . Garrison Access Hacks . | . . . . . . . . . . . . . . . Unauthorized Hacks 19 | . 6 5 1 2 . 1 1 . . . . 2 1 . Terminals 16 | . 6 5 1 1 . . 1 . . . . 1 1 . Track 2 | . 1 1 . . . . . . . . . . . . Botnet 14 | . 5 4 1 1 . . 1 . . . . 1 1 . Fabricators 2 | . . . . 1 . 1 . . . . . . . . Haulers 1 | . . . . 1 . . . . . . . . . . Download 1 | . . . . . . 1 . . . . . . . . Repair Stations 1 | . . . . . . . . . . . . 1 . . Mechanics 1 | . . . . . . . . . . . . 1 . . Recycling Units . | . . . . . . . . . . . . . . . Scanalyzers . | . . . . . . . . . . . . . . . Garrison Access . | . . . . . . . . . . . . . . . Data Cores Recovered 3 | . 1 2 . . . . . . . . . . . . Used 1 | . 1 . . . . . . . . . . . . . Hacking Detections 44 | . 5 7 2 5 . 1 3 . . . . 2 11 8 Full Trace Events 5 | . 1 1 1 . . . . . . . . . 1 1 Feedback Events 1 | . 1 . . . . . . . . . . . . . Corruption 1 | . 1 . . . . . . . . . . . . . Feedback Blocked . | . . . . . . . . . . . . . . . Robot Schematics Acquired . | . . . . . . . . . . . . . . . Robots Built 2 | . . . . . . . . . . . . . . 2 Authchips . | . . . . . . . . . . . . . . . Time 102 | . . . . . . . . . . . . . . 102 Total Robot Build Rating 16 | . . . . . . . . . . . . . . 16 Part Schematics Acquired 9 | . . 3 . 1 . 1 . . . 4 . . . . Parts Built . | . . . . . . . . . . . . . . . Authchips . | . . . . . . . . . . . . . . . Time . | . . . . . . . . . . . . . . . Total Part Build Rating . | . . . . . . . . . . . . . . . Parts Repaired 4 | . 2 1 . . . . . . . . . . 1 . Time 92 | . 52 26 . . . . . . . . . . 14 . Parts Recycled . | . . . . . . . . . . . . . . . Recycled Matter . | . . . . . . . . . . . . . . . Retrieved Matter . | . . . . . . . . . . . . . . . Retrieved Components . | . . . . . . . . . . . . . . . Parts Scanalyzed 4 | . . 3 . . . . . . . . . . . 1 Part Schematics Acquired 3 | . . 3 . . . . . . . . . . . . Parts Damaged 1 | . . . . . . . . . . . . . . 1 Bothacking | -11 -10 -9 -8 -7 -6 -5 -4 -4 -4 -4 -3 -3 -3 -2 ------------ Run | Yrd Mat Mat Mat Fac Fac Fac Fac Upp Upp Zhi Pro Res Qua Res Used RIF Installer . | . . . . . . . . . . . . . . . Robots Hacked . | . . . . . . . . . . . . . . . Non-combat . | . . . . . . . . . . . . . . . Combat . | . . . . . . . . . . . . . . . Robot Hacks Applied . | . . . . . . . . . . . . . . . Relay Couplers Released . | . . . . . . . . . . . . . . . Fabnet Peak Effective % . | . . . . . . . . . . . . . . . Robots Rewired . | . . . . . . . . . . . . . . . Allies Hacked 2 | . . . . . . . . . . . . . . 2 Hacks Repelled . | . . . . . . . . . . . . . . . Allies | -11 -10 -9 -8 -7 -6 -5 -4 -4 -4 -4 -3 -3 -3 -2 -------- Run | Yrd Mat Mat Mat Fac Fac Fac Fac Upp Upp Zhi Pro Res Qua Res Total Allies 2 | . . . . . . . . . . . . . . 2 Largest Group 2 | . . . . . . . . . . . . . . 2 Highest-Rated Group 128 | . . . . . . . . . . . . . . 128 Highest-Rated Ally 64 | . . . . . . . . . . . . . . 64 Total Orders 25 | . . . . . . . . . 7 . 3 7 5 3 STAY 7 | . . . . . . . . . 1 . . 2 2 2 ROAM 1 | . . . . . . . . . 1 . . . . . FOLLOW 5 | . . . . . . . . . 1 . . 2 1 1 EXPLORE 8 | . . . . . . . . . 2 . 2 2 2 . RETURN 4 | . . . . . . . . . 2 . 1 1 . . Ally Attacks 2 | . . . . . . . . . . . . . . 2 Total Damage 69 | . . . . . . . . . . . . . . 69 Kills . | . . . . . . . . . . . . . . . Allies Corrupted 2 | . . . . . . . . . . . . . . 2 Allies Melted . | . . . . . . . . . . . . . . . Intel | -11 -10 -9 -8 -7 -6 -5 -4 -4 -4 -4 -3 -3 -3 -2 ------- Run | Yrd Mat Mat Mat Fac Fac Fac Fac Upp Upp Zhi Pro Res Qua Res Active Infowar (turns) 8600 | . . 81 . 258 259 267 461 191 1535 246 582 376 2826 1518 Optics 41 | . . . . . . . . . . . . . . 41 Sensors 1331 | . . . . . . . . . . . . . 880 451 Terrain 13 | . . . . . . . . . . . . . . 13 Structural 3006 | . . . . . . . 301 51 1207 246 528 376 297 . T.N.C. 81 | . . 81 . . . . . . . . . . . . Cloaking 417 | . . . . . . . . . . . . . 417 . Jamming 8113 | . . . . 258 259 267 404 190 1535 246 582 376 2823 1173 Robot Analysis Total 4 | . . . . . . . . . . 4 . . . . Derelict Logs Recovered 2 | . . . . . . . . 1 1 . . . . . Drone Launches 7 | . . . . . . . . . 2 . 2 2 1 . Drone Recoveries 5 | . . . . . . . . . 2 . 2 1 . . Exploration | -11 -10 -9 -8 -7 -6 -5 -4 -4 -4 -4 -3 -3 -3 -2 ------------- Run | Yrd Mat Mat Mat Fac Fac Fac Fac Upp Upp Zhi Pro Res Qua Res Turns Passed 14626 | . 367 1383 272 1909 401 267 1052 568 1535 246 624 376 3427 2199 Spaces Moved 6903 | 1 184 641 141 999 209 148 416 203 606 170 295 171 1801 918 Core 105 | . . . . . . . . . . . . . . 105 Treads 2855 | . . 476 141 999 209 148 416 203 215 . . 47 . 1 Legs 3656 | 1 61 2 . . . . . . 391 170 295 124 1801 811 Wheels 287 | . 123 163 . . . . . . . . . . . 1 Hover . | . . . . . . . . . . . . . . . Flight . | . . . . . . . . . . . . . . . Fastest Speed 50 | 120 115 115 160 160 162 162 164 244 164 126 190 183 120 50 Average Speed 164 | 120 130 170 160 160 162 162 173 244 222 128 191 198 136 158 Slowest Speed 400 | 120 190 320 160 240 162 162 246 244 400 196 196 240 190 275 Overloaded Moves . | . . . . . . . . . . . . . . . Propulsion Burnouts . | . . . . . . . . . . . . . . . Robots Hopped . | . . . . . . . . . . . . . . . Potential Cave-ins 2 | . . . . . . . . . . . . . 2 . Cave-ins Triggered . | . . . . . . . . . . . . . . . Teleports 5 | . . . . . . . . . . . . . 5 . Exploration Rate (%) 35 | 2 44 66 19 33 9 6 12 40 67 62 60 7 80 27 Regions Visited 14 Branch Regions 5 Pre-discovered Areas 3 | . . . . . . . . . . 3 . . . . Known Exits Taken 1 | . . . . . . . . . . . . 1 . . Unknown Exits Taken 13 | 1 1 1 1 1 1 1 1 1 1 1 1 . 1 . Scrap Searched 4 | . . . . . . . . . 3 . 1 . . . Spaces Dug 89 | . . . . 16 . . . . 18 . . 4 38 13 Terrain Destroyed 552 | . . 29 . 84 4 . 170 24 87 . 58 4 59 33 Melee 57 | . . . . . . . . . 18 . . . 28 11 Projectile 163 | . . 4 . 1 4 . 66 24 24 . 7 4 19 10 AOE 332 | . . 25 . 83 . . 104 . 45 . 51 . 12 12 Terrain Rammed . | . . . . . . . . . . . . . . . Walls Destroyed . | . . . . . . . . . . . . . . . Machines Disabled . | . . . . . . . . . . . . . . . Actions | -11 -10 -9 -8 -7 -6 -5 -4 -4 -4 -4 -3 -3 -3 -2 --------- Run | Yrd Mat Mat Mat Fac Fac Fac Fac Upp Upp Zhi Pro Res Qua Res Total 8854 | . 277 824 179 1188 240 168 571 233 705 199 328 206 2369 1367 Wait 548 | . 55 51 24 51 2 . 12 8 14 . 6 4 181 140 Move 6889 | . 183 640 140 998 208 147 415 202 605 169 294 170 1800 918 Hop . | . . . . . . . . . . . . . . . Pick Up 139 | . 6 20 3 26 4 2 15 . 7 3 2 7 28 16 Fast Attach 145 | . 6 19 . 5 3 . 6 2 9 11 1 6 30 47 Attach 54 | . . 1 2 2 2 2 4 . 4 . . 2 17 18 Detach 36 | . 3 3 . 1 1 . . . . . . 1 10 17 Swap 161 | . . 10 2 16 5 4 34 3 10 3 12 1 37 24 Drop 210 | . 6 27 2 29 4 1 19 1 5 13 2 10 48 43 Fire 320 | . 17 53 3 56 11 2 65 17 33 . 11 5 32 15 Melee 321 | . . . . . . . . . 18 . . . 177 126 Ram 2 | . . . . . . . . . . . . . . 2 Kick 1 | . 1 . . . . . . . . . . . . . Crush 9 | . . . 3 4 . . 1 . . . . . . 1 Escape Stasis . | . . . . . . . . . . . . . . . Rewire 19 | . . . . . . 10 . . . . . . 9 . Trap . | . . . . . . . . . . . . . . . Miscellaneous . | . . . . . . . . . . . . . . . Route ------- -11/Scrapyard -10/Materials -9/Materials (discovered 2 exits: *Mat x2) -8/Materials -7/Factory (discovered 2 exits: [*Fac] / [*Low]) -6/Factory -5/Factory -4/Factory -4/Upper Caves -4/Upper Caves -4/Zhirov -3/Proximity Caves -3/Research (discovered 3 exits: Arm / *Qua x2) -3/Quarantine -2/Research (discovered 1 exit: Tes) History --------- Turn | Location | Event 1 | -11/Scrapyard | Discovered new exit (range 0) 1 | -11/Scrapyard | Entered Materials 273 | -10/Materials | Discovered new exit (range 15) 314 | -10/Materials | Build established: Mutant 323 | -10/Materials | Repaired Lgt. Cannon 351 | -10/Materials | Repaired Lgt. Cannon 368 | -10/Materials | Entered another Materials area 368 | -9/Materials | Evolved 2 slots: Utility x1, Weapon x1 536 | -9/Materials | Discovered new exit (range 3) 909 | -9/Materials | Build established: Gunner 1198 | -9/Materials | Repaired Lgt. Armor Plating 1675 | -9/Materials | Discovered new exit (range 10) 1751 | -9/Materials | Entered another Materials area 1751 | -8/Materials | Evolved 2 slots: Propulsion x2 1775 | -8/Materials | Garrison activated, responded to threat 1831 | -8/Materials | Met 7R-MNS 1999 | -8/Materials | Discovered new exit (range 16) 2023 | -8/Materials | Entered Factory 2023 | -7/Factory | Evolved 2 slots: Weapon x2 2024 | -7/Factory | Caught up to 7R-MNS 2148 | -7/Factory | Discovered new exit (range 6) 3003 | -7/Factory | Build established: Scavenger-Gunner 3740 | -7/Factory | Discovered new exit (range 13) 3796 | -7/Factory | Destroyed 7 combat bots 3804 | -7/Factory | Build established: Gunner 3932 | -7/Factory | Entered another Factory area 3932 | -6/Factory | Evolved 2 slots: Utility x2 3933 | -6/Factory | Caught up to 7R-MNS 4226 | -6/Factory | Build established: Tank 4269 | -6/Factory | Discovered new exit (range 13) 4333 | -6/Factory | Entered another Factory area 4333 | -5/Factory | Evolved 2 slots: Utility x2 4334 | -5/Factory | Caught up to 7R-MNS 4587 | -5/Factory | Discovered new exit (range 8) 4600 | -5/Factory | Entered another Factory area 4600 | -4/Factory | Evolved 2 slots: Power x1, Propulsion x1 4601 | -4/Factory | Caught up to 7R-MNS 4702 | -4/Factory | Attacked by 7R-MNS 4772 | -4/Factory | 7R-MNS lamented failing the tripod run 4772 | -4/Factory | Destroyed 7R-MNS 5409 | -4/Factory | Found Hvy. Insulated Plating 5640 | -4/Factory | Discovered new exit (range 5) 5652 | -4/Factory | Entered Upper Caves 5778 | -4/Upper Caves | Build established: Scavenger-Tank 5970 | -4/Upper Caves | Learned Research security intel 6075 | -4/Upper Caves | Attracted the attention of an 0b10 checkpoint 6200 | -4/Upper Caves | Discovered new exit (range 8) 6220 | -4/Upper Caves | Entered another Upper Caves area 6350 | -4/Upper Caves | Spotted B-86 Titan 6454 | -4/Upper Caves | Attracted the attention of an 0b10 outpost 6524 | -4/Upper Caves | Build established: Scavenger-Gunner 6546 | -4/Upper Caves | Lost 4 parts (1n2u1w) 6621 | -4/Upper Caves | Lost 3 parts (2n1w) 6912 | -4/Upper Caves | Build established: Derelict-Gunner 7437 | -4/Upper Caves | Attracted the attention of an 0b10 checkpoint 7707 | -4/Upper Caves | Discovered new exit (range 21) 7755 | -4/Upper Caves | Entered Zhirov 7758 | -4/Zhirov | Discovered new exit (range 3) 7781 | -4/Zhirov | Met Zhirov 7805 | -4/Zhirov | Learned location of Quarantine (-3) 7805 | -4/Zhirov | Learned location of Testing (-2) 7805 | -4/Zhirov | Learned location of Command (-1) 7835 | -4/Zhirov | Zhirov requested help retrieving the SGEMP Prototype 7854 | -4/Zhirov | Found Alien Artifact 7854 | -4/Zhirov | Identified Integrated Dissipator 7854 | -4/Zhirov | Installed Integrated Dissipator, increased core heat dissipation (+20) 7877 | -4/Zhirov | Found Alien Artifact 8001 | -4/Zhirov | Entered Proximity Caves 8245 | -3/Proximity Caves | Spotter reported a threat 8378 | -3/Proximity Caves | Spotter reported a threat 8417 | -3/Proximity Caves | System corruption reached 10% 8604 | -3/Proximity Caves | Discovered new exit (range 12) 8625 | -3/Proximity Caves | Entered Research 8625 | -3/Research | Evolved 2 slots: Propulsion x1, Utility x1 8721 | -3/Research | Identified exit to Armory 8721 | -3/Research | Identified exit to Quarantine 9001 | -3/Research | Entered Quarantine 9001 | -3/Quarantine | Accompanied by 1 ally 9052 | -3/Quarantine | Build established: Scavenger-Gunner 9136 | -3/Quarantine | Found Alien Slashing Weapon 9136 | -3/Quarantine | Identified Sigix Broadsword 9196 | -3/Quarantine | Found Alien Artifact 9196 | -3/Quarantine | Identified Transdimensional Reconstructor (x2) 9196 | -3/Quarantine | Warped through subspace 9542 | -3/Quarantine | Found Alien Artifact 9542 | -3/Quarantine | Identified Subatomic Replicator 9557 | -3/Quarantine | Used Subatomic Replicator to replicate Sigix Broadsword 9612 | -3/Quarantine | Repaired Imp. Medium Armor Plating 9768 | -3/Quarantine | Found Alien Artifact 9768 | -3/Quarantine | Identified Phase Redirector 9833 | -3/Quarantine | Build established: Hacker-Mutant 10017 | -3/Quarantine | Spotted Alpha 7 10252 | -3/Quarantine | Found Alien Artifact 10252 | -3/Quarantine | Identified Phase Armor 10475 | -3/Quarantine | Warped through subspace 10502 | -3/Quarantine | Found Alien Impact Weapon 10502 | -3/Quarantine | Identified Core Stripper 10719 | -3/Quarantine | System corruption reached 10% 10864 | -3/Quarantine | Found Prototype Device 10893 | -3/Quarantine | Met incapacitated Sigix Warrior 10893 | -3/Quarantine | Lockdown squad dispatched 10989 | -3/Quarantine | Spotted Lightning 11033 | -3/Quarantine | Spotted Lightning 11047 | -3/Quarantine | Found Transdimensional Reconstructor 11049 | -3/Quarantine | Found Transdimensional Reconstructor 11053 | -3/Quarantine | Warped through subspace 11106 | -3/Quarantine | Warped through subspace 11129 | -3/Quarantine | Found Transdimensional Reconstructor 11165 | -3/Quarantine | Found Alien Artifact 11300 | -3/Quarantine | Build established: Mutant 11576 | -3/Quarantine | Found Alien Energy Cannon 11751 | -3/Quarantine | First assault squad dispatched 11796 | -3/Quarantine | Warped through subspace 11882 | -3/Quarantine | Found Alien Artifact 12269 | -3/Quarantine | System corruption reached 30% 12319 | -3/Quarantine | Found Alien Reactor 12319 | -3/Quarantine | Identified Matter Drive 12340 | -3/Quarantine | Discovered new exit (range 16) 12364 | -3/Quarantine | Found Alien Artifact 12364 | -3/Quarantine | Identified Terrabomb 12364 | -3/Quarantine | Used Terrabomb 12379 | -3/Quarantine | Found Terrabomb 12428 | -3/Quarantine | Entered Research 12428 | -2/Research | Evolved 2 slots: Power x1, Weapon x1 12429 | -2/Research | Identified exit to Testing 12431 | -2/Research | Identified Core Cannon 12710 | -2/Research | Build established: Scavenger-Mutant 12775 | -2/Research | Identified Dimensional Node Initializer (x2) 12775 | -2/Research | Initialized slip node 12808 | -2/Research | Lost 4 parts (1p1n1u1w) 13089 | -2/Research | Build established: Gladiator 13100 | -2/Research | Fabricated Y-72 Warden? 13387 | -2/Research | System corruption reached 10% 13448 | -2/Research | Initialized slip node 13857 | -2/Research | Core integrity fell below 50% 13941 | -2/Research | Lost 4 parts (1p2n1u) 14219 | -2/Research | Found Prototype Launcher 14219 | -2/Research | Identified Ragnarok Missile Launcher 14452 | -2/Research | Found Gamma Bomb Array 14455 | -2/Research | System corruption reached 30% 14459 | -2/Research | Lost 3 parts (1p1u1w) 14536 | -2/Research | Core integrity fell below 20% 14539 | -2/Research | Destroyed 7 combat bots 14546 | -2/Research | Lost 9 parts (1p1n5u2w) 14564 | -2/Research | Released all parts (10) 14627 | -2/Research | Destroyed by X-87 Electro with Compact HERF Cannon Last Messages --------------- 14586_ System corrupted: IFF burst signal emitted. 14586_ Acquired Unknown Processor. 14586_ Identified Enh. Optical Array. 14591_ Connecting with Terminal... 14601_ System corrupted: IFF burst signal emitted. 14601_ Acquired Prototype Treads. 14601_ Identified Hds. Centrium Heavy Treads. 14604_ Acquired Unknown Treads. 14604_ Identified Adv. Heavy Siege Treads. 14607_ Acquired Biometal Heavy Treads. 14611_ Slammed into P-80 Master. 14617_ Slammed into T-07 Excavator. 14618_ System corrupted: Matter fused (-9). 14619_ Slammed into T-07 Excavator. 14619_ T-07 Excavator knocked back. 14622_ Connecting with Garrison Access... 14622_ ALERT: Suspicious activity at Garrison Access R003. Dispatching Investigation squad. Map ----- +----------------------------------------------------+ | ?????????????????????????????????????????????????? | | ?????????????????????????????????????????????????? | | ?????????????????????????????????????????????????? | | ?????????????????????????????????????????????????? | | ?????????????????????????????????????????????????? | | ???????????? ????????????????????????????????????? | | ???????????? ????????????????????????????????????? | | ???????????? ????????????????????????????????????? | | ???????????? ????????????????????????????????????? | | ???????????? ????????????????????????????????????? | | ???????????? ????????????????????????????????????? | | ???????????? ????????????????????????????????????? | | ????????????H????????????????????????????????????? | | ???????????? ????????????????????????????????????? | | ???????????? ????????????????????????????????????? | | ???????????# #???????????????????????????????????? | | ???????????# #????????????????#??????????????????? | | ???????????# ??????????????? #??????????????????? | | ############ #??????????????? #??????????????????? | | + ## #?????????????? #??????????????????? | | # ## #?????????????? #???##?????????????? | | # = ??# #????????????? #?? ??????????????? | | #? ????# #????????????? #? ?? ????????????? | | ####+##????# #?###########t #] ?"" ????????????? | | # #????# #?# # # """ ""?????????? | | # "" ###### ### @ g/ """ ""?????????? | | + T xpx/ #A # #?????? | | # ######/### # +?????????? #?????? | | # #?# # + #??????????????????? | | ### ###?# # # #??????????????????? | | ### ##### # "" "" # #??????????????????? | | + # ""G"" + #??????????????????? | | ###/##### !################??????????????????? | | # = #?????????????????????????????????? | | ########?????????????????????????????????? | | #????????????????????????????????????????? | | #????????????????????????????????????????? | | #########????????????????????????????????????????? | | | | | | | | | | | | | | | | | | | | | | | | | +----------------------------------------------------+ Best States ------------- Heat Dissipation 97 Energy Generation 61 Energy Capacity 900 Matter Stores 300 Matter Capacity 800 Sight Range 22 Robot Scan Range 16 Terrain Scan Range 14 Terrain Scan Density 10 Jamming Range 12 Cloak Strength 3 Additional Mass Support 25 Armor Coverage 600 Resistance: TH 20 Resistance: EM 30 Weapon Shielding 66 Phase Shifting 15 Evasion (%) 70 Targeting Accuracy 8 Melee Accuracy 16 Core Analysis 6 Armor Integrity Analysis 30 Recoil Reduction 5 Matter Filtering 30 Offensive Hacking 14 Defensive Hacking 12 Item Schematics ----------------- Lgt. Treads | -9/Materials | Scanalyzed Imp. Ion Engine | -9/Materials | Scanalyzed Lgt. Armor Plating | -9/Materials | Scanalyzed Jamming Amplifier | -7/Factory | Hacked Quantum Reactor | -5/Factory | Downloaded Assault Drone Bay | -4/Zhirov | Free Exp. Heat Sink | -4/Zhirov | Free Exp. Optical Array | -4/Zhirov | Free Imp. Arc Thrower | -4/Zhirov | Free Robot Schematics ------------------ None Fabricated ------------ Y-72 Warden | x2 | -2/Research | Preloaded Repaired ---------- Lgt. Cannon | 60% | -10/Materials Lgt. Cannon | 63% | -10/Materials Lgt. Armor Plating | 25% | -9/Materials Imp. Medium Armor Plating | 52% | -3/Quarantine Alien Tech Used ----------------- Integrated Dissipator Sigix Broadsword Transdimensional Reconstructor Subatomic Replicator Phase Redirector Phase Armor Core Stripper Matter Drive Terrabomb Core Cannon Dimensional Node Initializer Achievements -------------- Sunderer Challenges ------------ None Game ------ Seed MakeshiftGuidanceShifter Manual? 0 Play Time 02:31:26 Cumulative 213.9 hours Start 2025.10.13 @ 23:51:19 End 2025.10.14 @ 16:56:54 Sessions 3 Manual Loads 0 Difficulty Rogue Special Mode None Game No. 218 Rogue 218 Adventurer 0 Explorer 0 Win Type - Total 3 Types 3/0/0/0/0/0/0/0/0/0 Lore% 73 Gallery% 70 Achievement% 66 Wizard Run 0 Options --------- Layout 1 ASCII 0 Keyboard 1 Movement Vi Keybinds 0 Fullscreen 1 Font 24/Smallcaps Map View 50x35 Zoom Use 0% Tactical HUD 1 Map Filters NONE Filters NONE Steam X RUN: 691b7347-f085-49f9-bdc9-6ef534551000